[Event "GER-ch Youth U10W 2020"]
[Site "Willingen"]
[Date "2020.10.27"]
[Round "1.18"]
[White "Amrhein, Yana"]
[Black "Jäger, Viktoria"]
[Result "0-1"]
[ECO "A06"]
[WhiteElo "747"]
[BlackElo "1114"]
[Annotator "NA RC"]
[PlyCount "89"]
[EventDate "2020.10.27"]
[EventType "swiss"]
[EventRounds "7"]
[EventCountry "GER"]
[SourceTitle "playchess.com"]
[Source "ChessBase"]
[SourceQuality "1"]
[TimeControl "40/4500+30:900+30"]

1. Nf3 {[%emt 0:00:00]} d5 {[%emt 0:00:00]} 2. g3 {[%emt 0:00:00]} Nc6 {[%emt 0:00:08]} 3. Bg2 {[%emt 0:00:05]} e5 {[%emt 0:00:17]} 4. d3 {[%emt 0:00:16]} Bf5 {[%emt 0:01:13]} 5. b3 {[%emt 0:00:56]} Bc5 {[%emt 0:00:57]} 6. Bb2 {[%emt 0:00:33]} Qd6 {[%emt 0:01:06]} 7. c4 {[%emt 0:00:31]} O-O-O {[%emt 0:00:40]} 8. O-O {[%emt 0:00:13]} Qe6 {[%emt 0:00:44]} 9. cxd5 {[%emt 0:00:53]} Rxd5 {[%emt 0:00:36]} 10. Ng5 {[%emt 0:00:25]} Qg6 {[%emt 0:02:45]} 11. Bxd5 {[%emt 0:00:23]} Qxg5 {[%emt 0:01:43]} 12. Bxf7 {[%emt 0:00:27]} Nh6 {[%emt 0:01:05]} 13. Bc4 {[%emt 0:00:29]} Rd8 {[%emt 0:00:38]} 14. Qc2 Qh5 {[%emt 0:00:58]} 15. Be6+ {[%emt 0:02:03]} Bxe6 {[%emt 0:00:27]} 16. Qxc5 {[%emt 0:00:14]} Ng4 {[%emt 0:00:28]} 17. h4 {[%emt 0:00:58]} g5 {[%emt 0:00:42]} 18. Rc1 {[%emt 0:00:48]} gxh4 {[%emt 0:00:55]} 19. f3 {[%emt 0:00:30]} Rd5 {[%emt 0:01:39]} 20. fxg4 {[%emt 0:02:18]} Rxc5 {[%emt 0:00:27]} 21. gxh5 {[%emt 0:00:12]} Rxc1+ {[%emt 0:00:13]} 22. Bxc1 {[%emt 0:00:17]} hxg3 {[%emt 0:00:21]} 23. Kg2 Nd4 {[%emt 0:01:04]} 24. Kxg3 Nxe2+ 25. Kf3 {[%emt 0:01:58]} Nxc1 {[%emt 0:00:37]} 26. Nc3 {[%emt 0:00:16]} Nxd3 {[%emt 0:00:43]} 27. Rd1 {[%emt 0:02:26]} Nf4 {[%emt 0:00:55]} 28. Rc1 {[%emt 0:00:28]} Nxh5 {[%emt 0:00:30]} 29. Nb5 {[%emt 0:00:42]} Bd5+ {[%emt 0:00:58]} 30. Kg4 {[%emt 0:00:26]} Nf6+ {[%emt 0:00:14]} 31. Kf5 {[%emt 0:04:22]} Nd7 {[%emt 0:01:19]} 32. Nxa7+ {[%emt 0:01:33]} Kb8 {[%emt 0:00:14]} 33. Nb5 {[%emt 0:00:18]} Bf7 {[%emt 0:00:52]} 34. Rxc7 {[%emt 0:00:36]} Bg6+ {[%emt 0:00:52]} 35. Ke6 {[%emt 0:00:54]} Bd3 {[%emt 0:00:43]} 36. Kxd7 {[%emt 0:00:13]} Bxb5+ {[%emt 0:00:09]} 37. Rc6 {[%emt 0:00:26]} Bxc6+ {[%emt 0:00:00]} 38. Kd6 {[%emt 0:00:16]} h5 {[%emt 0:00:00]} 39. Kxe5 {[%emt 0:00:07]} h4 {[%emt 0:00:00]} 40. Kf4 {[%emt 0:00:04]} h3 {[%emt 0:00:00]} 41. Kg3 {[%emt 0:15:09]} Bd7 {[%emt 0:13:54]} 42. Kh2 {[%emt 0:00:08]} Kc7 {[%emt 0:00:10]} 43. a4 {[%emt 0:00:03]} Kb6 {[%emt 0:00:08]} 44. b4 Bxa4 45. Kxh3 {[%emt 0:01:09]} 0-1

[Event "GER-ch Youth U10W 2020"]
[Site "Willingen"]
[Date "2020.10.27"]
[Round "1.19"]
[White "Manakov, Luisa"]
[Black "Margaryan, Mari"]
[Result "1-0"]
[ECO "C44"]
[WhiteElo "1103"]
[BlackElo "690"]
[Annotator "NA RC"]
[PlyCount "33"]
[EventDate "2020.10.27"]
[EventType "swiss"]
[EventRounds "7"]
[EventCountry "GER"]
[SourceTitle "playchess.com"]
[Source "ChessBase"]
[SourceQuality "1"]
[TimeControl "40/4500+30:900+30"]

1. e4 e5 2. Nf3 {[%emt 0:00:27]} Nc6 {[%emt 0:00:12]} 3. d4 {[%emt 0:00:06]} exd4 {[%emt 0:00:14]} 4. Nxd4 {[%emt 0:00:09]} Nf6 {[%emt 0:00:07]} 5. Nc3 {[%emt 0:00:10]} Bb4 {[%emt 0:00:09]} 6. Nxc6 {[%emt 0:00:23]} bxc6 {[%emt 0:00:09]} 7. Bc4 {[%emt 0:00:29]} Nxe4 {[%emt 0:00:33]} 8. Qf3 {[%emt 0:00:25]} Nd6 {[%emt 0:00:23]} 9. Bb3 {[%emt 0:00:30]} O-O {[%emt 0:00:22]} 10. O-O {[%emt 0:00:18]} Rb8 {[%emt 0:00:10]} 11. Qg3 {[%emt 0:00:08]} Re8 {[%emt 0:00:34]} 12. Bh6 {[%emt 0:00:26]} g6 {[%emt 0:00:21]} 13. Rae1 {[%emt 0:00:37]} Ba6 {[%emt 0:00:19]} 14. Rxe8+ {[%emt 0:00:12]} Qxe8 {[%emt 0:00:17]} 15. Qg5 {[%emt 0:00:45]} Kh8 {[%emt 0:00:34]} 16. Qf6+ {[%emt 0:00:00]} Kg8 {[%emt 0:00:37]} 17. Qg7# {[%emt 0:00:00]} 1-0

[Event "GER-ch Youth U10W 2020"]
[Site "Willingen"]
[Date "2020.10.28"]
[Round "2.1"]
[White "Jäger, Viktoria"]
[Black "Sickmann, Lisa"]
[Result "0-1"]
[ECO "C54"]
[WhiteElo "1114"]
[BlackElo "1510"]
[Annotator "NA RC"]
[PlyCount "48"]
[EventDate "2020.10.27"]
[EventType "swiss"]
[EventRounds "7"]
[EventCountry "GER"]
[SourceTitle "playchess.com"]
[Source "ChessBase"]
[SourceQuality "1"]
[TimeControl "40/4500+30:900+30"]

1. e4 {[%emt 0:00:00]} e5 {[%emt 0:00:00]} 2. Nf3 {[%emt 0:00:00]} Nc6 {[%emt 0:00:00]} 3. Bc4 {[%emt 0:00:00]} Bc5 {[%emt 0:00:22]} 4. c3 {[%emt 0:00:45]} Nf6 {[%emt 0:00:11]} 5. d4 {[%emt 0:00:47]} exd4 {[%emt 0:00:08]} 6. cxd4 {[%emt 0:00:56]} Bb4+ {[%emt 0:00:08]} 7. Bd2 {[%emt 0:01:27]} Nxe4 {[%emt 0:00:23]} 8. O-O {[%emt 0:01:03]} d5 {[%emt 0:03:21]} 9. Bxb4 {[%emt 0:01:52]} Nxb4 {[%emt 0:02:03]} 10. Re1 {[%emt 0:01:47]} O-O {[%emt 0:08:19]} 11. Be2 {[%emt 0:03:51]} Bf5 {[%emt 0:03:31]} 12. Nbd2 {[%emt 0:10:23]} Nxd2 {[%emt 0:02:53]} 13. Rc1 {[%emt 0:02:10]} Nxf3+ {[%emt 0:00:45]} 14. Bxf3 {[%emt 0:02:04]} Nd3 {[%emt 0:00:09]} 15. Rxc7 {[%emt 0:01:28]} Qxc7 {[%emt 0:00:27]} 16. Re2 {[%emt 0:00:48]} Rfe8 {[%emt 0:00:24]} 17. Rd2 {[%emt 0:00:30]} Re1+ {[%emt 0:00:07]} 18. Qxe1 {[%emt 0:00:13]} Nxe1 {[%emt 0:00:06]} 19. Rd1 {[%emt 0:00:28]} Nxf3+ {[%emt 0:00:09]} 20. gxf3 {[%emt 0:00:09]} Bh3 {[%emt 0:00:01]} 21. Kh1 {[%emt 0:01:08]} Qc2 {[%emt 0:00:12]} 22. Rg1 {[%emt 0:00:16]} Qxf2 {[%emt 0:00:06]} 23. f4 {[%emt 0:00:24]} Qf3+ {[%emt 0:00:07]} 24. Rg2 {[%emt 0:00:06]} Qxg2# {[%emt 0:00:04]} 0-1

[Event "GER-ch Youth U10W 2020"]
[Site "Willingen"]
[Date "2020.10.28"]
[Round "2.2"]
[White "Bauer, Laura Sophie"]
[Black "Le, Thao-Linh"]
[Result "1-0"]
[ECO "C22"]
[WhiteElo "1287"]
[BlackElo "1121"]
[Annotator "NA RC"]
[PlyCount "27"]
[EventDate "2020.10.27"]
[EventType "swiss"]
[EventRounds "7"]
[EventCountry "GER"]
[SourceTitle "playchess.com"]
[Source "ChessBase"]
[SourceQuality "1"]
[TimeControl "40/4500+30:900+30"]

1. e4 {[%emt 0:00:00]} e5 {[%emt 0:00:00]} 2. d4 {[%emt 0:00:00]} exd4 {[%emt 0:01:44]} 3. Qxd4 {[%emt 0:00:00]} Nc6 {[%emt 0:02:38]} 4. Qe3 {[%emt 0:00:01]} Be7 {[%emt 0:05:22]} 5. Nc3 {[%emt 0:00:56]} d6 {[%emt 0:05:05]} 6. Bd2 {[%emt 0:01:03]} Be6 {[%emt 0:02:28]} 7. O-O-O {[%emt 0:01:19]} Qd7 {[%emt 0:00:47]} 8. f4 {[%emt 0:01:32]} f6 {[%emt 0:06:27]} 9. Nd5 {[%emt 0:05:58]} Bf8 {[%emt 0:16:04]} 10. Bc4 {[%emt 0:04:23]} O-O-O {[%emt 0:07:37]} 11. Nf3 {[%emt 0:03:37]} Kb8 {[%emt 0:03:18]} 12. Qb3 {[%emt 0:02:57]} Na5 {[%emt 0:05:40]} 13. Bxa5 {[%emt 0:01:11]} Rc8 {[%emt 0:07:14]} 14. Nxf6 1-0

[Event "GER-ch Youth U10W 2020"]
[Site "Willingen"]
[Date "2020.10.28"]
[Round "2.3"]
[White "Zhou, Leyi Charlotte"]
[Black "Czaeczine, Paula"]
[Result "0-1"]
[ECO "C58"]
[WhiteElo "1071"]
[BlackElo "1127"]
[Annotator "NA RC"]
[PlyCount "104"]
[EventDate "2020.10.27"]
[EventType "swiss"]
[EventRounds "7"]
[EventCountry "GER"]
[SourceTitle "playchess.com"]
[Source "ChessBase"]
[SourceQuality "1"]
[TimeControl "40/4500+30:900+30"]

1. e4 {[%emt 0:00:00]} e5 {[%emt 0:00:00]} 2. Nf3 {[%emt 0:00:00]} Nc6 {[%emt 0:00:00]} 3. Bc4 {[%emt 0:00:00]} Nf6 {[%emt 0:00:00]} 4. Ng5 {[%emt 0:00:01]} d5 {[%emt 0:00:14]} 5. exd5 {[%emt 0:00:16]} Na5 {[%emt 0:00:14]} 6. Bb5+ {[%emt 0:00:21]} c6 {[%emt 0:00:13]} 7. dxc6 {[%emt 0:00:26]} bxc6 {[%emt 0:00:05]} 8. Bd3 {[%emt 0:00:17]} h6 {[%emt 0:04:57]} 9. Ne4 {[%emt 0:00:31]} Nxe4 {[%emt 0:02:56]} 10. Bxe4 {[%emt 0:00:13]} Bc5 {[%emt 0:01:23]} 11. Nc3 {[%emt 0:01:51]} O-O {[%emt 0:03:18]} 12. a3 {[%emt 0:00:15]} Qd4 {[%emt 0:07:17]} 13. O-O {[%emt 0:01:32]} Nc4 {[%emt 0:10:06]} 14. Bxc6 {[%emt 0:04:03]} Rb8 {[%emt 0:00:47]} 15. d3 {[%emt 0:01:43]} Nxb2 {[%emt 0:01:55]} 16. Bxb2 {[%emt 0:02:13]} Rxb2 {[%emt 0:00:24]} 17. Nb5 {[%emt 0:00:42]} Qf4 {[%emt 0:06:32]} 18. g3 {[%emt 0:02:51]} Qf6 {[%emt 0:01:18]} 19. Qc1 {[%emt 0:01:54]} Qxc6 {[%emt 0:04:28]} 20. Re1 {[%emt 0:07:58]} Rxb5 {[%emt 0:02:19]} 21. c4 {[%emt 0:02:48]} Rb8 {[%emt 0:05:14]} 22. Rxe5 {[%emt 0:00:48]} Bxf2+ {[%emt 0:01:39]} 23. Kxf2 {[%emt 0:00:59]} Qf6+ {[%emt 0:00:13]} 24. Qf4 {[%emt 0:00:21]} Rb2+ {[%emt 0:01:48]} 25. Kg1 {[%emt 0:06:37]} Qb6+ {[%emt 0:02:58]} 26. c5 {[%emt 0:04:08]} Rb1+ {[%emt 0:01:27]} 27. Rxb1 {[%emt 0:01:48]} Qxb1+ {[%emt 0:00:14]} 28. Qf1 {[%emt 0:01:01]} Qxf1+ {[%emt 0:00:26]} 29. Kxf1 {[%emt 0:00:07]} Rd8 {[%emt 0:00:26]} 30. Ke2 {[%emt 0:00:27]} Ba6 {[%emt 0:00:35]} 31. Re3 {[%emt 0:00:29]} Kf8 {[%emt 0:00:44]} 32. Kd2 {[%emt 0:00:15]} Re8 {[%emt 0:00:52]} 33. Rxe8+ {[%emt 0:05:10]} Kxe8 {[%emt 0:00:10]} 34. d4 {[%emt 0:00:09]} Kd7 {[%emt 0:00:46]} 35. Ke3 {[%emt 0:04:16]} Bb7 {[%emt 0:01:26]} 36. Kd3 {[%emt 0:00:27]} Ke6 {[%emt 0:00:55]} 37. Kc4 {[%emt 0:06:13]} Ba6+ {[%emt 0:01:14]} 38. Kc3 {[%emt 0:00:10]} Kd5 {[%emt 0:00:16]} 39. a4 {[%emt 0:00:15]} g5 {[%emt 0:01:00]} 40. h3 {[%emt 0:00:43]} f5 {[%emt 0:00:46]} 41. a5 {[%emt 0:15:18]} Bb7 {[%emt 0:15:40]} 42. Kd3 {[%emt 0:02:01]} f4 {[%emt 0:01:02]} 43. gxf4 {[%emt 0:03:06]} gxf4 {[%emt 0:00:17]} 44. h4 {[%emt 0:00:13]} f3 {[%emt 0:01:11]} 45. Ke3 {[%emt 0:00:09]} f2 {[%emt 0:00:29]} 46. Kxf2 {[%emt 0:00:05]} Kxd4 {[%emt 0:00:16]} 47. Kg3 {[%emt 0:00:09]} h5 {[%emt 0:00:40]} 48. Kf4 {[%emt 0:00:49]} Kxc5 {[%emt 0:00:18]} 49. a6 {[%emt 0:00:17]} Bxa6 {[%emt 0:00:14]} 50. Kg5 {[%emt 0:00:15]} Be2 {[%emt 0:00:11]} 51. Kf4 {[%emt 0:00:24]} Kd4 {[%emt 0:00:33]} 52. Kf5 {[%emt 0:00:43]} a5 {[%emt 0:00:06]} 0-1

[Event "GER-ch Youth U10W 2020"]
[Site "Willingen"]
[Date "2020.10.28"]
[Round "2.4"]
[White "Meier, Viktoria"]
[Black "Manakov, Luisa"]
[Result "1-0"]
[ECO "D00"]
[WhiteElo "1316"]
[BlackElo "1103"]
[Annotator "NA RC"]
[PlyCount "61"]
[EventDate "2020.10.27"]
[EventType "swiss"]
[EventRounds "7"]
[EventCountry "GER"]
[SourceTitle "playchess.com"]
[Source "ChessBase"]
[SourceQuality "1"]
[TimeControl "40/4500+30:900+30"]

1. d4 {[%emt 0:00:00]} d5 {[%emt 0:00:00]} 2. Bf4 {[%emt 0:00:00]} Nf6 {[%emt 0:00:00]} 3. e3 {[%emt 0:00:09]} Bf5 {[%emt 0:00:02]} 4. c3 {[%emt 0:00:11]} e6 {[%emt 0:00:13]} 5. Bd3 {[%emt 0:00:30]} Bxd3 {[%emt 0:00:20]} 6. Qxd3 {[%emt 0:00:13]} Bd6 {[%emt 0:00:05]} 7. Bg3 {[%emt 0:00:19]} O-O {[%emt 0:00:13]} 8. Nd2 {[%emt 0:00:15]} Nc6 {[%emt 0:00:12]} 9. Ngf3 {[%emt 0:00:14]} Re8 {[%emt 0:00:26]} 10. Ne5 {[%emt 0:00:43]} Nxe5 {[%emt 0:00:40]} 11. dxe5 {[%emt 0:00:17]} Ne4 {[%emt 0:01:05]} 12. exd6 {[%emt 0:00:20]} Nxg3 {[%emt 0:00:13]} 13. hxg3 {[%emt 0:00:30]} h6 {[%emt 0:00:19]} 14. dxc7 {[%emt 0:00:20]} Qxc7 {[%emt 0:00:10]} 15. O-O-O {[%emt 0:00:18]} Rad8 {[%emt 0:00:40]} 16. g4 {[%emt 0:00:38]} e5 {[%emt 0:00:13]} 17. g3 {[%emt 0:01:56]} e4 {[%emt 0:01:20]} 18. Qd4 {[%emt 0:00:37]} Qa5 {[%emt 0:00:27]} 19. Kb1 {[%emt 0:02:11]} Rd6 {[%emt 0:00:19]} 20. f3 {[%emt 0:00:42]} Rb6 {[%emt 0:00:17]} 21. fxe4 {[%emt 0:00:36]} Qa3 {[%emt 0:00:21]} 22. Qxb6 {[%emt 0:01:26]} Qa4 {[%emt 0:02:01]} 23. Qxb7 {[%emt 0:00:56]} Re6 {[%emt 0:00:57]} 24. g5 {[%emt 0:00:34]} Ra6 {[%emt 0:00:30]} 25. Qc8+ {[%emt 0:01:15]} Kh7 {[%emt 0:00:09]} 26. g6+ {[%emt 0:00:43]} fxg6 {[%emt 0:00:11]} 27. a3 {[%emt 0:00:33]} Rb6 {[%emt 0:00:16]} 28. c4 {[%emt 0:01:00]} Qxa3 {[%emt 0:00:12]} 29. Rxh6+ {[%emt 0:01:37]} Kxh6 {[%emt 0:00:16]} 30. Qh3+ {[%emt 0:00:16]} Kg5 {[%emt 0:01:03]} 31. Qh4# 1-0

[Event "GER-ch Youth U10W 2020"]
[Site "Willingen"]
[Date "2020.10.28"]
[Round "2.5"]
[White "Huber, Laura"]
[Black "Strübel, Katharina"]
[Result "1-0"]
[ECO "C50"]
[WhiteElo "1249"]
[BlackElo "1091"]
[Annotator "NA RC"]
[PlyCount "93"]
[EventDate "2020.10.27"]
[EventType "swiss"]
[EventRounds "7"]
[EventCountry "GER"]
[SourceTitle "playchess.com"]
[Source "ChessBase"]
[SourceQuality "1"]
[TimeControl "40/4500+30:900+30"]

1. e4 {[%emt 0:00:00]} e5 {[%emt 0:00:00]} 2. Nf3 {[%emt 0:00:12]} Nc6 {[%emt 0:00:30]} 3. Bc4 {[%emt 0:00:23]} Bc5 {[%emt 0:00:59]} 4. d3 {[%emt 0:00:35]} d6 {[%emt 0:01:39]} 5. h3 {[%emt 0:02:10]} h6 {[%emt 0:03:30]} 6. O-O {[%emt 0:01:27]} g5 {[%emt 0:01:54]} 7. g4 {[%emt 0:14:37]} f6 {[%emt 0:15:37]} 8. Be3 {[%emt 0:14:42]} Bb6 {[%emt 0:18:09]} 9. Nc3 {[%emt 0:04:23]} h5 {[%emt 0:02:06]} 10. Nh2 {[%emt 0:03:53]} Nge7 {[%emt 0:06:23]} 11. Qf3 {[%emt 0:02:20]} Ng6 {[%emt 0:02:19]} 12. Bxg5 {[%emt 0:14:10]} Rf8 {[%emt 0:04:05]} 13. Bh6 {[%emt 0:02:56]} Rh8 {[%emt 0:01:42]} 14. Bg7 {[%emt 0:03:40]} Rh7 {[%emt 0:02:26]} 15. Bxf6 {[%emt 0:00:45]} Qd7 {[%emt 0:00:55]} 16. Qf5 Qxf5 {[%emt 0:02:03]} 17. gxf5 {[%emt 0:02:51]} Rh6 {[%emt 0:01:14]} 18. Bg5 {[%emt 0:00:30]} Rh7 {[%emt 0:01:00]} 19. fxg6 {[%emt 0:00:16]} Rg7 {[%emt 0:00:29]} 20. Bf7+ {[%emt 0:00:06]} Kd7 {[%emt 0:00:39]} 21. Bh6 {[%emt 0:00:23]} Rxg6+ {[%emt 0:03:01]} 22. Bxg6 {[%emt 0:00:05]} Ke7 {[%emt 0:00:40]} 23. Nd5+ {[%emt 0:00:23]} Kd7 {[%emt 0:01:40]} 24. Bf5+ {[%emt 0:00:33]} Ke8 {[%emt 0:00:22]} 25. Nxb6 {[%emt 0:00:23]} axb6 {[%emt 0:00:12]} 26. Bxc8 {[%emt 0:00:16]} Rxc8 {[%emt 0:00:25]} 27. c3 {[%emt 0:00:18]} Kd7 {[%emt 0:00:53]} 28. Kh1 {[%emt 0:00:25]} Rg8 {[%emt 0:00:35]} 29. Rg1 {[%emt 0:00:15]} Rh8 {[%emt 0:00:24]} 30. Rg7+ {[%emt 0:00:24]} Ke8 {[%emt 0:00:27]} 31. Be3 {[%emt 0:00:30]} Ne7 {[%emt 0:00:35]} 32. Rag1 Kf8 {[%emt 0:02:02]} 33. d4 {[%emt 0:01:37]} exd4 {[%emt 0:00:34]} 34. Bxd4 {[%emt 0:00:28]} c5 {[%emt 0:06:31]} 35. Rxe7 {[%emt 0:03:57]} cxd4 {[%emt 0:00:17]} 36. Rxb7 {[%emt 0:00:18]} dxc3 {[%emt 0:01:27]} 37. Rb8+ {[%emt 0:00:15]} Kf7 {[%emt 0:00:24]} 38. Rxh8 {[%emt 0:00:07]} cxb2 {[%emt 0:00:10]} 39. Rb1 {[%emt 0:00:13]} Kg7 {[%emt 0:00:06]} 40. Rxh5 Kg6 {[%emt 0:01:51]} 41. Rf5 {[%emt 0:15:14]} Kg7 {[%emt 0:17:31]} 42. Rxb2 {[%emt 0:00:06]} Kh7 {[%emt 0:00:57]} 43. Rg5 {[%emt 0:00:13]} Kh6 {[%emt 0:00:11]} 44. Rg4 {[%emt 0:00:36]} Kh5 {[%emt 0:00:20]} 45. Rxb6 {[%emt 0:00:26]} Kh6 {[%emt 0:00:12]} 46. Rb7 {[%emt 0:00:10]} Kh5 {[%emt 0:00:07]} 47. Rh7# 1-0

[Event "GER-ch Youth U10W 2020"]
[Site "Willingen"]
[Date "2020.10.28"]
[Round "2.6"]
[White "Hoffmann, Svenja"]
[Black "Woiteck, Sophia"]
[Result "0-1"]
[ECO "B56"]
[WhiteElo "1219"]
[BlackElo "1065"]
[Annotator "NA RC"]
[PlyCount "64"]
[EventDate "2020.10.27"]
[EventType "swiss"]
[EventRounds "7"]
[EventCountry "GER"]
[SourceTitle "playchess.com"]
[Source "ChessBase"]
[SourceQuality "1"]
[TimeControl "40/4500+30:900+30"]

1. e4 {[%emt 0:00:00]} c5 {[%emt 0:00:00]} 2. Nf3 {[%emt 0:00:05]} d6 {[%emt 0:00:00]} 3. d4 {[%emt 0:00:32]} cxd4 {[%emt 0:00:13]} 4. Nxd4 {[%emt 0:00:18]} Nf6 {[%emt 0:00:18]} 5. Nc3 {[%emt 0:01:01]} e5 {[%emt 0:00:19]} 6. Nf3 {[%emt 0:01:30]} Be6 {[%emt 0:01:21]} 7. Bb5+ {[%emt 0:02:54]} Nbd7 {[%emt 0:02:57]} 8. Bg5 {[%emt 0:01:45]} Be7 {[%emt 0:01:13]} 9. Qd2 {[%emt 0:01:48]} a6 {[%emt 0:00:43]} 10. Bxd7+ {[%emt 0:02:21]} Qxd7 {[%emt 0:01:05]} 11. Nd5 {[%emt 0:00:44]} Nxe4 {[%emt 0:04:07]} 12. Qd3 {[%emt 0:04:14]} Bxd5 {[%emt 0:03:31]} 13. Bxe7 {[%emt 0:00:42]} Qxe7 {[%emt 0:02:26]} 14. Qxd5 {[%emt 0:00:26]} Nf6 {[%emt 0:00:30]} 15. Qb3 {[%emt 0:02:43]} h6 {[%emt 0:02:30]} 16. O-O {[%emt 0:03:30]} O-O {[%emt 0:00:31]} 17. Rfe1 {[%emt 0:01:37]} Rac8 {[%emt 0:00:43]} 18. Nh4 {[%emt 0:02:18]} Nh5 {[%emt 0:03:48]} 19. Nf5 {[%emt 0:02:09]} Qf6 {[%emt 0:00:57]} 20. Qd3 {[%emt 0:01:19]} Nf4 {[%emt 0:00:46]} 21. Qe4 {[%emt 0:00:28]} b5 {[%emt 0:04:20]} 22. Rad1 {[%emt 0:00:44]} Rc4 {[%emt 0:01:21]} 23. Nxh6+ {[%emt 0:02:25]} Qxh6 {[%emt 0:00:52]} 24. Qe3 {[%emt 0:01:21]} Rxc2 {[%emt 0:03:35]} 25. Qb6 {[%emt 0:01:50]} Qg5 {[%emt 0:04:23]} 26. g3 {[%emt 0:00:09]} Nh3+ {[%emt 0:00:22]} 27. Kg2 {[%emt 0:00:12]} Rxf2+ {[%emt 0:00:28]} 28. Kh1 {[%emt 0:00:11]} Qf5 {[%emt 0:03:11]} 29. Qb7 {[%emt 0:00:22]} Qc2 {[%emt 0:02:15]} 30. Rd2 {[%emt 0:03:45]} Qxd2 {[%emt 0:00:14]} 31. Re2 {[%emt 0:00:23]} Qd1+ {[%emt 0:00:11]} 32. Re1 {[%emt 0:00:07]} Qxe1# {[%emt 0:00:10]} 0-1

[Event "GER-ch Youth U10W 2020"]
[Site "Willingen"]
[Date "2020.10.28"]
[Round "2.7"]
[White "Kutz, Ida Klara"]
[Black "Will, Elina"]
[Result "0-1"]
[ECO "D30"]
[WhiteElo "997"]
[BlackElo "1149"]
[Annotator "NA RC"]
[PlyCount "92"]
[EventDate "2020.10.27"]
[EventType "swiss"]
[EventRounds "7"]
[EventCountry "GER"]
[SourceTitle "playchess.com"]
[Source "ChessBase"]
[SourceQuality "1"]
[TimeControl "40/4500+30:900+30"]

1. d4 {[%emt 0:00:00]} d5 {[%emt 0:00:00]} 2. c4 {[%emt 0:00:00]} e6 {[%emt 0:00:00]} 3. e3 {[%emt 0:00:00]} Nf6 {[%emt 0:00:22]} 4. Nc3 {[%emt 0:00:21]} c6 {[%emt 0:00:37]} 5. b3 {[%emt 0:00:31]} Nbd7 {[%emt 0:01:07]} 6. Nf3 {[%emt 0:00:10]} Ne4 {[%emt 0:02:44]} 7. Qd3 {[%emt 0:02:04]} Ndf6 {[%emt 0:00:38]} 8. Be2 {[%emt 0:03:17]} Be7 {[%emt 0:00:13]} 9. O-O {[%emt 0:02:46]} O-O {[%emt 0:00:05]} 10. Bb2 {[%emt 0:00:54]} c5 {[%emt 0:05:30]} 11. Ba3 {[%emt 0:02:54]} b6 {[%emt 0:05:06]} 12. Ne5 {[%emt 0:01:29]} Bb7 {[%emt 0:03:33]} 13. Ng4 {[%emt 0:02:03]} dxc4 {[%emt 0:06:24]} 14. Nxf6+ {[%emt 0:02:29]} Bxf6 {[%emt 0:01:04]} 15. bxc4 {[%emt 0:01:40]} Nxc3 {[%emt 0:00:33]} 16. Qxc3 {[%emt 0:00:22]} cxd4 {[%emt 0:00:08]} 17. exd4 {[%emt 0:03:47]} Bxd4 {[%emt 0:00:23]} 18. Qd3 {[%emt 0:00:26]} Bxa1 {[%emt 0:01:14]} 19. Bxf8 {[%emt 0:00:26]} Qxd3 {[%emt 0:00:52]} 20. Bxd3 {[%emt 0:00:29]} Kxf8 {[%emt 0:01:34]} 21. Rxa1 {[%emt 0:01:17]} Ke7 {[%emt 0:00:29]} 22. Rb1 {[%emt 0:00:40]} Kd6 {[%emt 0:00:33]} 23. a4 {[%emt 0:00:50]} Kc5 {[%emt 0:00:25]} 24. a5 {[%emt 0:00:37]} h6 {[%emt 0:02:06]} 25. h3 {[%emt 0:01:39]} Ba6 {[%emt 0:01:23]} 26. axb6 {[%emt 0:00:44]} axb6 {[%emt 0:00:09]} 27. Ra1 {[%emt 0:02:25]} Bb7 {[%emt 0:00:09]} 28. Rxa8 {[%emt 0:00:40]} Bxa8 {[%emt 0:00:04]} 29. Kf1 {[%emt 0:00:33]} Bb7 {[%emt 0:00:06]} 30. g3 {[%emt 0:00:48]} Ba6 {[%emt 0:00:09]} 31. Ke1 {[%emt 0:01:58]} Bxc4 {[%emt 0:00:10]} 32. Kd2 {[%emt 0:01:08]} Bxd3 {[%emt 0:00:09]} 33. Kxd3 {[%emt 0:00:16]} Kb4 {[%emt 0:00:13]} 34. Kc2 {[%emt 0:00:09]} Ka3 {[%emt 0:00:14]} 35. Kb1 {[%emt 0:00:05]} Kb3 {[%emt 0:00:10]} 36. h4 {[%emt 0:00:31]} e5 37. f3 f5 {[%emt 0:01:16]} 38. h5 {[%emt 0:03:11]} b5 {[%emt 0:00:09]} 39. Ka1 {[%emt 0:01:18]} Kc2 {[%emt 0:00:08]} 40. Ka2 {[%emt 0:00:11]} b4 {[%emt 0:00:09]} 41. g4 {[%emt 0:15:07]} b3+ {[%emt 0:15:16]} 42. Ka3 {[%emt 0:00:19]} b2 {[%emt 0:00:06]} 43. gxf5 {[%emt 0:00:20]} b1=Q 44. Ka4 Qb6 45. f4 Kc3 {[%emt 0:02:06]} 46. fxe5 {[%emt 0:01:08]} Qb4# 0-1

[Event "GER-ch Youth U10W 2020"]
[Site "Willingen"]
[Date "2020.10.28"]
[Round "2.8"]
[White "John, Linnea"]
[Black "Yan, Jenny"]
[Result "1/2-1/2"]
[ECO "C44"]
[WhiteElo "1146"]
[BlackElo "952"]
[Annotator "NA RC"]
[PlyCount "79"]
[EventDate "2020.10.27"]
[EventType "swiss"]
[EventRounds "7"]
[EventCountry "GER"]
[SourceTitle "playchess.com"]
[Source "ChessBase"]
[SourceQuality "1"]
[TimeControl "40/4500+30:900+30"]

1. e4 {[%emt 0:00:00]} e5 {[%emt 0:00:00]} 2. Nf3 {[%emt 0:00:00]} Nc6 {[%emt 0:00:03]} 3. d4 {[%emt 0:00:00]} exd4 {[%emt 0:00:32]} 4. Nxd4 {[%emt 0:00:01]} Nf6 {[%emt 0:00:51]} 5. Nxc6 {[%emt 0:00:22]} bxc6 {[%emt 0:01:07]} 6. Bd3 {[%emt 0:00:43]} d5 {[%emt 0:01:15]} 7. exd5 {[%emt 0:01:11]} cxd5 {[%emt 0:00:50]} 8. O-O {[%emt 0:00:37]} Bc5 {[%emt 0:01:08]} 9. Re1+ {[%emt 0:00:34]} Be6 {[%emt 0:01:06]} 10. Bb5+ {[%emt 0:01:51]} Nd7 {[%emt 0:01:06]} 11. Qxd5 {[%emt 0:05:21]} O-O {[%emt 0:02:46]} 12. Qf3 {[%emt 0:10:47]} Rb8 {[%emt 0:04:10]} 13. Nc3 {[%emt 0:01:56]} Bd4 {[%emt 0:03:03]} 14. Bxd7 {[%emt 0:03:02]} Qxd7 {[%emt 0:00:32]} 15. Rd1 {[%emt 0:00:40]} c5 {[%emt 0:04:26]} 16. Ne2 {[%emt 0:03:18]} Bg4 {[%emt 0:02:19]} 17. Qd3 {[%emt 0:08:18]} Rbd8 {[%emt 0:05:18]} 18. Bg5 {[%emt 0:04:50]} f6 {[%emt 0:01:48]} 19. Bf4 {[%emt 0:06:15]} Rfe8 {[%emt 0:02:39]} 20. c3 {[%emt 0:03:23]} Bxf2+ {[%emt 0:00:30]} 21. Kxf2 {[%emt 0:01:03]} Qxd3 {[%emt 0:00:14]} 22. Rxd3 {[%emt 0:00:18]} Rxd3 {[%emt 0:00:11]} 23. Ng3 {[%emt 0:01:35]} g5 {[%emt 0:01:11]} 24. Bb8 {[%emt 0:02:54]} Rd2+ 25. Kf1 {[%emt 0:01:08]} Rxb8 {[%emt 0:01:51]} 26. Ne4 {[%emt 0:02:56]} Rbxb2 {[%emt 0:01:13]} 27. Nxd2 {[%emt 0:01:09]} Rxd2 {[%emt 0:00:16]} 28. a3 {[%emt 0:00:18]} Bf5 {[%emt 0:01:52]} 29. Rc1 {[%emt 0:01:27]} Bd3+ {[%emt 0:00:31]} 30. Kg1 {[%emt 0:01:05]} Re2 {[%emt 0:00:22]} 31. Rd1 {[%emt 0:00:57]} Be4 {[%emt 0:00:44]} 32. g3 {[%emt 0:01:00]} Rg2+ {[%emt 0:00:50]} 33. Kf1 {[%emt 0:00:43]} Rxh2 {[%emt 0:00:00]} 34. Rd7 {[%emt 0:01:57]} Bg2+ {[%emt 0:00:20]} 35. Kg1 {[%emt 0:00:56]} Rh1+ {[%emt 0:01:23]} 36. Kxg2 {[%emt 0:00:34]} Rc1 {[%emt 0:00:21]} 37. Rxa7 {[%emt 0:01:21]} Rxc3 {[%emt 0:00:21]} 38. a4 {[%emt 0:00:35]} Rc2+ {[%emt 0:00:46]} 39. Kf3 {[%emt 0:00:35]} Rc4 {[%emt 0:01:04]} 40. a5 {[%emt 0:01:21]} 1/2-1/2